Cogmind - Beta 15 @@@ ROGUE MODE // 2025.08.06 @ 16:48:12 Player: f3-rnm Result: Core destroyed Performance ------------- Evolutions (5) 2500 Regions Visited (17) 3400 Robots Destroyed (159) 795 Value Destroyed (8111) 8111 Prototype IDs (10) 200 Alien Tech Used (0) 0 Bonus (2811) 2811 TOTAL SCORE: 17817 Bonus ------- Pacifist 200 High Alert Combat Kills 790 Follower Combat Kills 521 Entered Garrisons 800 Entered DSFs 500 Cogmind --------- Core Integrity 0/1000 Matter 280/300 Energy 11/100 System Corruption 10% Temperature Critical (991) Movement Treading (160) Location -5/Garrison Parts ------- > --- POWER (2) -------- (None) > --- PROPULSION (6) --- Improved Treads Carbon-fiber Leg Carbon-fiber Leg Cooled Gravmag System > --- UTILITY (7) ------ Advanced Heat Sink Advanced Heat Sink Advanced Targeting Computer Advanced Targeting Computer > --- WEAPON (2) ------- Variable Charge Gun Variable Charge Gun > --- INVENTORY (5) ---- Large Storage Unit Matter Compressor (250) Launcher Loader Peak State ------------ > --- POWER ------------ Enhanced Nuclear Core > --- PROPULSION ------- Gravmag System Combat Airjet Combat Airjet Combat Airjet Antigrav System Antigrav System > --- UTILITY ---------- High-capacity Storage Unit Advanced Sensor Array Improved Signal Interpreter Launcher Guidance Computer Improved Utility Shielding Layered Medium Armor Plating > --- WEAPON ----------- Power Sword Spear > --- INVENTORY -------- Enhanced Nuclear Core Gravmag System Antigrav System Improved Cooling System Large Storage Unit Energy Well High-capacity Matter Pod Matter Compressor Advanced Weight Redist. System IFF Parser Advanced Melee Analysis Suite Launcher Loader Hardened Medium Armor Plating Advanced Shield Generator Hacking Suite High-powered Tractor Beam Enhanced Gauss Cannon Heavy Mace [Rating: 73] Favorites ----------- Power Light Nuclear Core Engine Ion Engine Power Core Light Nuclear Core Propulsion Light Treads Treads Light Treads Leg Carbon-fiber Leg Wheel Wheel Hover Unit Combat Airjet Flight Unit VTOL Module Utility Launcher Guidance Computer Device High-powered Tractor Beam Storage High-capacity Storage Unit Processor Launcher Guidance Computer Hackware Hacking Suite Protection Hardened Medium Armor Plating Weapon Flak Gun Energy Gun Improved Medium Laser Energy Cannon Heavy Particle Cannon Ballistic Gun Flak Gun Ballistic Cannon Heavy Assault Cannon Launcher Mini Grenade Launcher Impact Weapon Heavy Mace Slashing Weapon Blade Saw Piercing Weapon Spear Build | -11 -10 -9 -8 -8 -8 -7 -7 -7 -7 -6 -6 -6 -6 -5 -5 -5 -5 ------- Run | Yrd Mat Mat Mat Gar Mat Fac Gar Fac Gar Fac Was Fac DSF Fac Was Fac Gar Slots Evolved 10 | . . 2 2 . . 2 . . . 2 . . . 2 . . . Power 1 | . . . . . . . . . . . . . . 1 . . . Propulsion 4 | . . 1 1 . . 1 . . . 1 . . . . . . . Utility 5 | . . 1 1 . . 1 . . . 1 . . . 1 . . . Weapon . | . . . . . . . . . . . . . . . . . . Parts Attached 156 | 6 . 13 15 17 9 17 8 6 9 12 2 . 4 8 . 19 11 Power 20 | 1 . 1 1 2 1 1 3 . 2 3 . . . 1 . 4 . Engine 10 | 1 . 1 1 1 1 1 1 . . 2 . . . 1 . . . Core 10 | . . . . 1 . . 2 . 2 1 . . . . . 4 . Reactor . | . . . . . . . . . . . . . . . . . . Propulsion 53 | 2 . 5 5 6 4 6 2 1 2 4 2 . 1 3 . 7 3 Treads 22 | 2 . 4 5 5 4 . 1 . . . . . . . . . 1 Leg 3 | . . . . . . . . . . . . . 1 . . . 2 Wheel 5 | . . . . 1 . . 1 . . . . . . 2 . 1 . Hover 17 | . . . . . . 6 . 1 2 4 2 . . 1 . 1 . Flight 6 | . . 1 . . . . . . . . . . . . . 5 . Utility 52 | 1 . 4 5 4 1 7 2 5 5 3 . . 2 3 . 6 4 Device 19 | . . 1 1 1 . 2 1 2 3 1 . . 1 1 . 2 3 Storage 6 | 1 . 1 1 . . 1 . . . . . . . . . 2 . Processor 9 | . . . 2 . . 1 . 2 . . . . 1 1 . 2 . Hackware 4 | . . . . 2 . 1 1 . . . . . . . . . . Protection 14 | . . 2 1 1 1 2 . 1 2 2 . . . 1 . . 1 Artifact . | . . . . . . . . . . . . . . . . . . Weapon 31 | 2 . 3 4 5 3 3 1 . . 2 . . 1 1 . 2 4 Energy Gun 9 | 1 . 1 . 2 1 . . . . . . . . . . . 4 Energy Cannon 3 | . . . . . 1 . . . . . . . . 1 . 1 . Ballistic Gun 6 | 1 . . 4 . . . . . . . . . . . . 1 . Ballistic Cannon 3 | . . 1 . 1 . 1 . . . . . . . . . . . Launcher 5 | . . 1 . 1 1 1 1 . . . . . . . . . . Special Weapon . | . . . . . . . . . . . . . . . . . . Impact Weapon 1 | . . . . . . 1 . . . . . . . . . . . Slashing Weapon 3 | . . . . 1 . . . . . 1 . . 1 . . . . Piercing Weapon 1 | . . . . . . . . . . 1 . . . . . . . Special Melee Weapon . | . . . . . . . . . . . . . . . . . . Unidentified Prototypes 10 | . . 2 . . 1 1 . . . 1 . . . 1 . 4 . Parts Lost 72 | . . 3 2 9 . 1 11 . 10 2 . . 13 . . 13 8 Power 15 | . . 2 . 2 . . 3 . 3 . . . . . . 3 2 Propulsion 31 | . . 1 . 5 . . 3 . 2 2 . . 9 . . 8 1 Utility 17 | . . . . 1 . 1 3 . 3 . . . 3 . . 2 4 Weapon 9 | . . . 2 1 . . 2 . 2 . . . 1 . . . 1 Highest Loss Streak 12 | . . 1 1 6 . 1 4 . 5 2 . . 12 . . 8 7 To Critical Strikes . | . . . . . . . . . . . . . . . . . . Average Backups 18 | . 2 9 19 25 29 19 18 15 17 18 19 19 16 4 4 4 5 Power 1 | . 1 1 1 2 2 1 . . . 1 1 1 . . . . . Propulsion 2 | . 1 5 3 4 4 1 3 1 1 . 1 2 1 . . . . Utility 10 | . . 1 9 11 15 11 12 11 12 12 13 13 12 4 4 4 5 Weapon 3 | . . 1 4 6 7 5 3 2 3 3 3 3 2 . . . . Tool/Special . | . . . . . . . . . . . . . . . . . . Unused Backups 49 | . . 6 2 7 6 2 1 3 2 7 1 . 8 . . . 4 Power 9 | . . . . 2 1 . . . 1 4 . . 1 . . . . Propulsion 5 | . . 2 1 1 . . 1 . . . . . . . . . . Utility 29 | . . 3 1 1 5 2 . 3 1 2 1 . 6 . . . 4 Weapon 5 | . . 1 . 2 . . . . . 1 . . 1 . . . . Tool/Special 1 | . . . . 1 . . . . . . . . . . . . . Average Slot Usage (%) 84 | . 85 89 93 81 89 95 75 95 94 93 93 93 84 42 58 57 51 Engine 4 | . 14 10 9 5 1 7 3 . . 2 . . . 2 5 . . Core 3 | . . . . 2 7 . 2 7 6 3 6 6 5 . . 8 1 Treads 16 | . 28 31 35 30 35 1 1 . . . . . . . . . 1 Wheel 1 | . . . . 4 . . 4 . . . . . . 5 11 4 1 Hover 13 | . . . . . . 35 10 34 37 39 40 40 32 3 5 1 3 Device 4 | . . 8 2 3 3 7 6 5 1 5 6 6 5 2 5 5 9 Storage 7 | . 14 11 9 9 9 7 7 7 7 6 6 6 5 . . 1 3 Processor 10 | . . . 8 9 9 7 7 14 15 13 13 13 14 20 23 23 13 Hackware 1 | . . . . . . 4 5 7 4 . . . . . . . . Protection 6 | . . 6 11 5 5 6 7 1 4 12 13 13 10 . . . . Energy Gun 1 | . 14 . . 2 8 . . . . . . . . . . . 5 Ballistic Gun 4 | . 14 10 17 . 8 . . . . . . . . . . . . Ballistic Cannon 1 | . . 10 . 5 . . . 6 . . . . . . . . . Launcher 2 | . . . . . . 9 7 . 8 . . . . . . . . Impact Weapon 1 | . . . . . . 1 5 7 2 . . . . . . . . Piercing Weapon 1 | . . . . . . . . . . 5 6 6 3 5 5 5 1 Peak Build Rating 73 | 6 6 15 28 29 33 49 52 52 57 67 69 69 73 39 33 44 53 Average Rating 36 | 4 6 11 26 25 32 45 39 48 50 61 67 69 62 26 33 34 38 On Entrance 34 | . 6 6 14 27 28 33 49 40 52 41 65 69 69 17 33 33 40 Naked Turns . | . . . . . . . . . . . . . . . . . . Heaviest Build 173 | 12 12 39 161 167 157 173 68 54 59 62 61 61 64 6 6 43 48 Greatest Support 82 | 40 40 60 80 82 82 82 57 57 57 64 67 67 67 10 9 16 30 Greatest Overweight (x) 7 | 1 . . 2 3 1 3 2 . 1 . 1 . 7 . . 4 6 Average Overweight (x) . | . . . . 1 1 . 1 . . . . . . . . . 1 Largest Inventory Capacity 30 | 8 8 15 30 30 30 30 20 20 20 20 20 20 20 5 5 15 15 Average Capacity 20 | 7 8 10 23 29 30 20 19 15 20 20 20 20 18 5 5 8 11 Most Carried 30 | 2 3 15 27 30 30 30 20 19 20 20 20 20 20 5 5 10 10 Average Carried 18 | . 2 9 19 25 29 20 18 15 18 19 20 20 17 4 5 5 6 Final Capacity 30 | 8 8 15 30 30 30 20 15 20 20 20 20 20 5 5 5 15 5 Final Carried 30 | 2 3 15 26 29 30 20 14 19 20 20 20 20 5 5 5 10 4 Class Distribution -------------------- 53% | Scavenger-Mutant 29% | Hauler-Mutant 16% | Mutant Dominant Class ---------------- Mutant | -10/Materials Mutant | -9/Materials Hauler-Mutant | -8/Materials Hauler-Mutant | -8/Garrison Hauler-Mutant | -8/Materials Scavenger-Mutant | -7/Factory Scavenger-Mutant | -7/Garrison Scavenger-Mutant | -7/Factory Scavenger-Mutant | -7/Garrison Scavenger-Mutant | -6/Factory Scavenger-Mutant | -6/Waste Scavenger-Mutant | -6/Factory Scavenger-Mutant | -6/DSF Scavenger-Mutant | -5/Factory Scavenger-Mutant | -5/Waste Scavenger-Mutant | -5/Factory Scavenger-Mutant | -5/Garrison Resources | -11 -10 -9 -8 -8 -8 -7 -7 -7 -7 -6 -6 -6 -6 -5 -5 -5 -5 ----------- Run | Yrd Mat Mat Mat Gar Mat Fac Gar Fac Gar Fac Was Fac DSF Fac Was Fac Gar Matter Collected 5889 | 259 . 481 645 1250 259 333 431 274 1092 397 10 . 95 38 . 125 200 Remotely 780 | . . . . 631 149 . . . . . . . . . . . . Salvage Created 5361 | . . 566 794 758 495 304 354 274 476 452 . . 286 38 . 160 404 Parts 284 | . . 35 41 44 33 13 20 4 30 18 . . 14 4 . 12 16 Haulers Intercepted 7 | . . 3 . . 1 1 . . . 2 . . . . . . . Recyclers Shooed 2 | . . . . . 1 1 . . . . . . . . . . . Parts Field Recycled . | . . . . . . . . . . . . . . . . . . Retrieved Matter . | . . . . . . . . . . . . . . . . . . Parts Self-Destructed . | . . . . . . . . . . . . . . . . . . Prevented . | . . . . . . . . . . . . . . . . . . Kills | -11 -10 -9 -8 -8 -8 -7 -7 -7 -7 -6 -6 -6 -6 -5 -5 -5 -5 ------- Run | Yrd Mat Mat Mat Gar Mat Fac Gar Fac Gar Fac Was Fac DSF Fac Was Fac Gar Combat Hostiles Destroyed 124 | . . 13 15 20 11 8 21 . 20 . . . 4 . . 6 6 Melee 15 | . . . . . . . 2 . . . . . 4 . . 6 3 Guns 40 | . . 5 15 9 9 . . . . . . . . . . . 2 Cannons 14 | . . 5 . 9 . . . . . . . . . . . . . AOE 52 | . . 3 . 2 2 8 17 . 20 . . . . . . . . Classes Destroyed 20 | . . 6 6 5 . 2 . . . . . . . 1 . . . Worker 9 | . . 1 . . 1 1 . 4 . 1 . . . 1 . . . Builder 5 | . . . 1 . . . . 2 . 2 . . . . . . . Tunneler 1 | . . . . . . . . . . . . . . 1 . . . Hauler 7 | . . 3 . . 1 1 . . . 2 . . . . . . . Recycler 6 | . . . 2 . . 1 . 2 . 1 . . . . . . . Mechanic 2 | . . . 1 . . . . . . 1 . . . . . . . Operator 2 | . . . . . . 1 . . . 1 . . . . . . . Drone 1 | . . . . . . 1 . . . . . . . . . . . Watcher 4 | . . 1 . . . . . . 2 1 . . . . . . . Swarmer 27 | . . . . 4 2 . 9 . 6 . . . . . . 6 . Cutter 2 | . . . . 2 . . . . . . . . . . . . . Grunt 44 | . . 9 4 4 3 5 9 . 8 . . . . . . . 2 Brawler 4 | . . 1 . . 1 . 1 . . . . . 1 . . . . Duelist 3 | . . . 1 1 . . . . 1 . . . . . . . . Sentry 27 | . . 3 7 5 5 . 2 . 2 . . . 1 . . . 2 Demolisher 1 | . . . . 1 . . . . . . . . . . . . . Specialist 4 | . . . 2 . . . . . . . . . 1 . . . 1 Hunter 5 | . . . . 1 . 2 . . 1 . . . 1 . . . . Programmer 5 | . . . . 2 . . . . 2 . . . . . . . 1 Heavy 1 | . . . 1 . . . . . . . . . . . . . . Best Kill Streak 7 | . . 4 2 6 3 7 6 5 5 2 . . 2 2 . 4 2 Combat Bots Only 6 | . . 3 2 6 2 5 6 . 5 . . . 2 . . 4 2 Max Kills in Single Turn 3 | . . 2 2 2 2 2 2 1 3 1 . . 1 1 . 1 1 Gunslinging . | . . . . . . . . . . . . . . . . . . Exploded 3 | . . 2 . 2 1 2 2 . 3 . . . . . . . . Melee 1 | . . . . . . . 1 . . . . . 1 . . 1 1 Uniques/NPCs Destroyed . | . . . . . . . . . . . . . . . . . . Combat | -11 -10 -9 -8 -8 -8 -7 -7 -7 -7 -6 -6 -6 -6 -5 -5 -5 -5 -------- Run | Yrd Mat Mat Mat Gar Mat Fac Gar Fac Gar Fac Was Fac DSF Fac Was Fac Gar Hostile Shots Fired 1133 | . . 82 75 121 44 37 176 18 170 3 . . 224 . . 76 107 Missed 362 | . . 22 17 26 14 20 61 6 81 . . . 69 . . 25 21 Hits 771 | . . 60 58 95 30 17 115 12 89 3 . . 155 . . 51 86 Melee 18 | . . 3 . 10 3 . . . . . . . 2 . . . . Projectile 753 | . . 57 58 85 27 17 115 12 89 3 . . 153 . . 51 86 AOE 10 | . . . . 4 2 . . . . . . . 2 . . 2 . Critical Strikes 26 | . . 2 3 9 . . 2 . 4 . . . 5 . . . 1 Part Disruptions 1 | . . . . 1 . . . . . . . . . . . . . Damage Taken 12403 | . . 792 1166 1497 535 285 1503 85 910 348 . . 2246 . . 1098 1938 Core 2897 | . . 116 86 224 73 30 262 29 219 41 . . 756 . . 541 520 Absorbed by Shields 308 | . . . . . . . . . 151 . . . 157 . . . . Redirected to Shielding 97 | . . . . . . . . . 10 17 . . 70 . . . . Regen/Repaired (Parts) 203 | . . . . . . . . 27 . 118 58 . . . . . . Core Remaining (%) 54 | 100 100 71 . . 30 . . . 22 . . . 6 . . . . Volleys Fired 309 | . . 57 45 66 31 8 41 5 39 . . . . . . . 17 Largest 2 | . . 2 2 2 2 2 2 1 2 . . . . . . . 2 Hottest 450 | . . 60 56 84 84 60 60 37 66 . . . . . . . 450 Shots Fired 457 | . . 110 90 74 57 15 43 5 43 . . . . . . . 20 Gun 245 | . . 54 90 29 52 . . . . . . . . . . . 20 Cannon 107 | . . 52 . 42 2 . . 5 6 . . . . . . . . Launcher 105 | . . 4 . 3 3 15 43 . 37 . . . . . . . . Special . | . . . . . . . . . . . . . . . . . . Kinetic 295 | . . 105 90 63 26 . . 5 6 . . . . . . . . Thermal 56 | . . . . 8 28 . . . . . . . . . . . 20 Explosive 105 | . . 4 . 3 3 15 43 . 37 . . . . . . . . Electromagnetic 1 | . . 1 . . . . . . . . . . . . . . . Robot Hit Streak 36 | . . 13 9 15 8 3 32 . 36 . . . . . . . 18 Robot Miss Streak 8 | . . 4 8 6 6 1 . . 2 . . . . . . . 1 Penetration Max 1 | . . . . 1 . . . . . . . . . . . . . Secondary Targets 2 | . . . 1 1 . . . . . . . . . . . . . Max Gunslinging Chain 1 | . . . 1 1 . . . . . . . . . . . . . Shots Hit Robots 412 | . . 73 77 57 38 11 46 9 20 18 . . 22 4 . 11 26 Core Hits 377 | . . 32 99 52 42 24 42 2 47 10 . . 7 2 . 6 12 Critical Kills 2 | . . . . . . . 1 1 . . . . . . . . . Critical Parts Destroyed 4 | . . . . . . . 2 2 . . . . . . . . . Critical Strikes 28 | . . 2 . 7 4 . 3 3 . 1 . . 1 . . 2 5 Burn 6 | . . . . . 4 . . . . . . . . . . . 2 Blast 5 | . . 2 . 3 . . . . . . . . . . . . . Smash 6 | . . . . . . . 3 3 . . . . . . . . . Sever 5 | . . . . 4 . . . . . . . . 1 . . . . Impale 6 | . . . . . . . . . . 1 . . . . . 2 3 Melee Attacks 182 | . . . . 20 . 14 33 16 3 25 . . 31 5 . 18 17 Impact 66 | . . . . . . 14 33 16 3 . . . . . . . . Slashing 40 | . . . . 20 . . . . . 1 . . 19 . . . . Piercing 76 | . . . . . . . . . . 24 . . 12 5 . 18 17 Sneak Attacks 25 | . . . . . . 2 1 7 . 8 . . 1 4 . 2 . Combat Hostiles 2 | . . . . . . . 1 . . . . . 1 . . . . Follow-up Attacks 3 | . . . . . . . . . . . . . 3 . . . . Damage Inflicted 15574 | . . 1383 1354 2097 864 1431 2632 626 2084 765 . . 918 239 . 405 776 Guns 3394 | . . 460 1354 475 669 . . . . . . . . . . . 436 Cannons 1857 | . . 674 . 1183 . . . . . . . . . . . . . Explosions 5630 | . . 249 . 119 195 1043 1999 . 2025 . . . . . . . . Melee 4634 | . . . . 320 . 388 633 626 . 765 . . 918 239 . 405 340 Ramming 59 | . . . . . . . . . 59 . . . . . . . . Kinetic 4383 | . . 1121 1354 1569 339 . . . . . . . . . . . . Thermal 913 | . . . . 89 330 58 . . . . . . . . . . 436 Explosive 5572 | . . 249 . 119 195 985 1999 . 2025 . . . . . . . . Electromagnetic 13 | . . 13 . . . . . . . . . . . . . . . Impact 1647 | . . . . . . 388 633 626 . . . . . . . . . Slashing 910 | . . . . 320 . . . . . . . . 590 . . . . Piercing 2077 | . . . . . . . . . . 765 . . 328 239 . 405 340 Highest Corruption 10 | . . . 2 5 5 . . . 5 1 1 1 6 . 10 10 10 Average Corruption 4 | . . . 2 3 5 . . . 2 1 1 1 1 . 10 10 10 Corruption Purged . | . . . . . . . . . . . . . . . . . . Corruption Blocked . | . . . . . . . . . . . . . . . . . . Effects 108 | . . . 10 27 28 . . . 4 . 2 . 4 . 6 16 11 Message Errors 22 | . . . 2 7 6 . . . . . . . 2 . . 4 1 Matter Fused 27 | . . . 2 9 7 . . . 1 . . . 1 . 2 4 1 Heat Flow Errors 13 | . . . 1 . 4 . . . 1 . . . 1 . 1 3 2 Energy Discharges 12 | . . . . . 2 . . . 2 . 2 . . . . 4 2 Parts Rejected 1 | . . . . . 1 . . . . . . . . . . . . Parts Fused 2 | . . . . 1 1 . . . . . . . . . . . . Data Loss (minor) 19 | . . . 2 6 6 . . . . . . . . . 2 1 2 Data Loss (major) 3 | . . . . 1 1 . . . . . . . . . . . 1 Misfires 3 | . . . 2 1 . . . . . . . . . . . . . Alerts 2 | . . . . 2 . . . . . . . . . . . . . Misdirections 1 | . . . . . . . . . . . . . . . 1 . . Weapon Failures 3 | . . . 1 . . . . . . . . . . . . . 2 Overload Shots 8 | . . . . . . . . . . . . . . . . . 8 Effects 2 | . . . . . . . . . . . . . . . . . 2 Heat Surge 2 | . . . . . . . . . . . . . . . . . 2 Overflow Damage 995 | . . 3 . 69 25 64 171 357 63 49 . . 92 59 . 43 . Projectiles 65 | . . 3 . 62 . . . . . . . . . . . . . Explosions 104 | . . . . . 25 . 28 . 51 . . . . . . . . Melee 826 | . . . . 7 . 64 143 357 12 49 . . 92 59 . 43 . Knockbacks 18 | . . 3 . 8 . 1 3 3 . . . . . . . . . Impact 7 | . . . . . . 1 3 3 . . . . . . . . . Kinetic 11 | . . 3 . 8 . . . . . . . . . . . . . Secondary . | . . . . . . . . . . . . . . . . . . Self-Inflicted Damage 495 | . . 18 71 36 18 29 110 . 213 . . . . . . . . Shots 18 | . . 3 1 1 1 1 5 . 6 . . . . . . . . Rammed 4 | . . . . . . . . . 4 . . . . . . . . Targets Rammed 4 | . . . . . . . . . 4 . . . . . . . . Kicked . | . . . . . . . . . . . . . . . . . . Crushed . | . . . . . . . . . . . . . . . . . . Highest Temperature 991 | . . 57 201 57 247 13 47 1 214 19 139 89 117 . 207 232 991 Average Temperature 50 | . . 25 36 18 55 6 14 1 82 19 64 47 60 . 105 83 360 Received Heat Transfer 2722 | . . 330 333 189 177 75 507 18 105 9 . . 487 . . 78 414 Effects 3 | . . . . . . . . . . . . . . . . . 3 Energy Bleed 1 | . . . . . . . . . . . . . . . . . 1 Interference 1 | . . . . . . . . . . . . . . . . . 1 Damage (core) 1 | . . . . . . . . . . . . . . . . . 1 Siege Activations . | . . . . . . . . . . . . . . . . . . Martial Activations . | . . . . . . . . . . . . . . . . . . Shielding Activations . | . . . . . . . . . . . . . . . . . . Robots Disrupted . | . . . . . . . . . . . . . . . . . . Combat Hostiles . | . . . . . . . . . . . . . . . . . . Robots Corrupted 10 | . . . . . . 2 2 5 1 . . . . . . . . Combat Hostiles 2 | . . . . . . . 2 . . . . . . . . . . Parts Fried 15 | . . . . . . 2 1 10 2 . . . . . . . . Impact Corruptions 24 | . . . . . . 3 7 13 1 . . . . . . . . Robots Melted 1 | . . . . . . . . . . . . . . . . . 1 Combat Hostiles 1 | . . . . . . . . . . . . . . . . . 1 Parts Melted 7 | . . . . 2 1 . . . . . . . . . . . 4 Heat Transferred 1983 | . . . . 203 999 50 . . . . . . . . . . 731 Parts Sabotaged . | . . . . . . . . . . . . . . . . . . Parts Stolen . | . . . . . . . . . . . . . . . . . . Parts Stripped . | . . . . . . . . . . . . . . . . . . Power Chain Reactions . | . . . . . . . . . . . . . . . . . . Alert | -11 -10 -9 -8 -8 -8 -7 -7 -7 -7 -6 -6 -6 -6 -5 -5 -5 -5 ------- Run | Yrd Mat Mat Mat Gar Mat Fac Gar Fac Gar Fac Was Fac DSF Fac Was Fac Gar Maximum Alert Level 4 | . . . . 3 2 1 3 2 4 2 1 . . . . . . Low Security (%) 43 | 100 100 100 100 17 . 37 . . . . 89 100 100 100 100 100 100 Level 1 10 | . . . . 40 . 62 9 . 7 . 10 . . . . . . Level 2 29 | . . . . 21 100 . 20 100 22 100 . . . . . . . Level 3 12 | . . . . 20 . . 70 . 31 . . . . . . . . Level 4 3 | . . . . . . . . . 38 . . . . . . . . Level 5 . | . . . . . . . . . . . . . . . . . . High Security . | . . . . . . . . . . . . . . . . . . Max Security . | . . . . . . . . . . . . . . . . . . Peak Influence 1257 | . . 135 180 996 529 374 1009 544 1257 654 211 53 185 60 . 50 87 Initial 654 | . . . 53 105 485 187 245 529 289 654 196 53 28 60 . . . Average 370 | . . 42 47 455 455 268 778 478 910 596 144 49 118 27 . 8 59 Influence Increases 5717 | . . 416 516 981 386 388 874 74 1098 189 71 8 357 27 . 163 169 Destroy 0b10 Robot/C 2680 | . . 260 300 400 220 140 420 . 540 . . . 160 . . 120 120 Destroy 0b10 Robot/NC 205 | . . 25 20 20 10 25 . 40 10 45 . . . 10 . . . Destroy Leader 438 | . . 58 110 20 82 42 30 . 40 6 . . 30 . . 10 10 Allied During Kill 96 | . . . . . . . . . 24 . . . 72 . . . . Successful Hack 72 | . . . . 16 8 14 12 . . . . 8 . . . 14 . Disable Machine 285 | . . 30 15 15 30 60 60 15 30 15 . . 15 . . . . Anti-Garrison Action 750 | . . . . 400 . . 100 . 250 . . . . . . . . Destroy Structure 591 | . . 13 26 110 21 62 132 4 129 3 56 . 20 2 . 4 9 Partial Spotted 60 | . . . . . . . . . . 30 15 . . 15 . . . Lose Combat Pursuer 540 | . . 30 45 . 15 45 120 15 75 90 . . 60 . . 15 30 Influence Decreases 5608 | . . 289 481 147 969 450 216 670 264 875 555 44 283 142 . 163 60 Entered New Map 2628 | . . . 74 57 511 226 106 480 124 593 365 24 13 55 . . . Time Decay 2111 | . . 269 387 . 458 214 . 190 . 262 150 20 . 87 . 74 . Lost Part 649 | . . 20 20 90 . 10 110 . 100 20 . . 130 . . 89 60 Lost Ally 220 | . . . . . . . . . 40 . 40 . 140 . . . . Squads Dispatched 18 | . 1 . 3 . 1 4 . 2 . 3 . . 3 . . 1 . Investigation 3 | . . . . . . 1 . 1 . 1 . . . . . . . Extermination 3 | . . . . . . 1 . . . 1 . . . . . 1 . Reinforcement 11 | . 1 . 2 . 1 2 . 1 . 1 . . 3 . . . . Assault . | . . . . . . . . . . . . . . . . . . Garrison 1 | . . . 1 . . . . . . . . . . . . . . Intercept . | . . . . . . . . . . . . . . . . . . Searches Triggered . | . . . . . . . . . . . . . . . . . . Construction Impeded . | . . . . . . . . . . . . . . . . . . Haulers Reinforced 1 | . . . . . . 1 . . . . . . . . . . . Active Scanning Responses . | . . . . . . . . . . . . . . . . . . Cargo Convoy Interrupts . | . . . . . . . . . . . . . . . . . . Stealth | -11 -10 -9 -8 -8 -8 -7 -7 -7 -7 -6 -6 -6 -6 -5 -5 -5 -5 --------- Run | Yrd Mat Mat Mat Gar Mat Fac Gar Fac Gar Fac Was Fac DSF Fac Was Fac Gar Distress Signals 10 | . . 3 4 . 3 . . . . . . . . . . . . Communications Jammed . | . . . . . . . . . . . . . . . . . . Distress Signals . | . . . . . . . . . . . . . . . . . . Times Spotted 229 | . 3 21 31 23 20 13 25 2 34 6 6 . 19 . 7 12 7 Peak Tracking Total 7 | . 2 5 5 6 3 4 5 3 6 4 4 . 7 . 6 5 7 Tactical Retreats 26 | . . 2 2 . 1 2 6 1 4 2 . . 3 . 1 1 1 Traps | -11 -10 -9 -8 -8 -8 -7 -7 -7 -7 -6 -6 -6 -6 -5 -5 -5 -5 ------- Run | Yrd Mat Mat Mat Gar Mat Fac Gar Fac Gar Fac Was Fac DSF Fac Was Fac Gar Traps Triggered 16 | . . . 1 1 . 1 2 . 4 2 . . 1 1 . 1 2 Indirectly . | . . . . . . . . . . . . . . . . . . Trap Hack Attempts . | . . . . . . . . . . . . . . . . . . Triggered . | . . . . . . . . . . . . . . . . . . Disarmed . | . . . . . . . . . . . . . . . . . . Reprogrammed . | . . . . . . . . . . . . . . . . . . Reused . | . . . . . . . . . . . . . . . . . . Traps Extracted . | . . . . . . . . . . . . . . . . . . Installed . | . . . . . . . . . . . . . . . . . . Triggered . | . . . . . . . . . . . . . . . . . . Machines | -11 -10 -9 -8 -8 -8 -7 -7 -7 -7 -6 -6 -6 -6 -5 -5 -5 -5 ---------- Run | Yrd Mat Mat Mat Gar Mat Fac Gar Fac Gar Fac Was Fac DSF Fac Was Fac Gar Machines Disabled 34 | . . 2 1 9 2 4 6 1 7 1 . . 1 . . . . Max in Single Turn 3 | . . 1 1 2 1 3 2 1 2 1 . . . . . . . Garrison Relay 10 | . . . . 5 . . 2 . 3 . . . . . . . . Phase Generator 2 | . . . . 1 . . . . 1 . . . . . . . . Machines Repaired . | . . . . . . . . . . . . . . . . . . Machines Dismantled . | . . . . . . . . . . . . . . . . . . Machines Sabotaged . | . . . . . . . . . . . . . . . . . . Overloaded Fab Kills . | . . . . . . . . . . . . . . . . . . Hacking | -11 -10 -9 -8 -8 -8 -7 -7 -7 -7 -6 -6 -6 -6 -5 -5 -5 -5 --------- Run | Yrd Mat Mat Mat Gar Mat Fac Gar Fac Gar Fac Was Fac DSF Fac Was Fac Gar Machines Accessed 25 | . . . 1 1 4 3 1 3 2 4 . 2 . 1 . 3 . Terminals 19 | . . . . 1 4 2 1 1 2 3 . 2 . 1 . 2 . Fabricators . | . . . . . . . . . . . . . . . . . . Repair Stations 2 | . . . . . . . . 1 . 1 . . . . . . . Recycling Units . | . . . . . . . . . . . . . . . . . . Scanalyzers . | . . . . . . . . . . . . . . . . . . Garrison Access 4 | . . . 1 . . 1 . 1 . . . . . . . 1 . Total Hacks 43 | . . . 1 3 10 5 2 3 5 4 . 3 . 2 . 5 . Successful 16 | . . . 1 1 2 1 1 2 1 1 . 3 . . . 3 . Failed 27 | . . . . 2 8 4 1 1 4 3 . . . 2 . 2 . Catastrophic 6 | . . . . . 1 1 . 1 . 3 . . . . . . . Database Lockouts . | . . . . . . . . . . . . . . . . . . Manual 16 | . . . . 2 6 2 . 2 . 2 . 1 . . . 1 . Terminals 37 | . . . . 3 10 4 2 1 5 3 . 3 . 2 . 4 . Fabricators . | . . . . . . . . . . . . . . . . . . Repair Stations 2 | . . . . . . . . 1 . 1 . . . . . . . Recycling Units . | . . . . . . . . . . . . . . . . . . Scanalyzers . | . . . . . . . . . . . . . . . . . . Garrison Access 4 | . . . 1 . . 1 . 1 . . . . . . . 1 . Terminal Hacks 10 | . . . . 1 2 . 1 . 1 . . 3 . . . 2 . Open DSF 1 | . . . . . . . . . . . . 1 . . . . . Branch Access Points 2 | . . . . . 1 . . . . . . 1 . . . . . Emergency Access Points 2 | . . . . . . . 1 . 1 . . . . . . . . Terminal Index 1 | . . . . . . . . . . . . . . . . 1 . Alert Level 2 | . . . . . 1 . . . . . . . . . . 1 . Zone Layout 1 | . . . . . . . . . . . . 1 . . . . . Garrison Registry 1 | . . . . 1 . . . . . . . . . . . . . Fabricator Hacks . | . . . . . . . . . . . . . . . . . . Repair Station Hacks . | . . . . . . . . . . . . . . . . . . Recycling Unit Hacks . | . . . . . . . . . . . . . . . . . . Scanalyzer . | . . . . . . . . . . . . . . . . . . Garrison Access Hacks 4 | . . . 1 . . 1 . 1 . . . . . . . 1 . Unlock Access 4 | . . . 1 . . 1 . 1 . . . . . . . 1 . Unauthorized Hacks 2 | . . . . . . . . 1 . 1 . . . . . . . Terminals . | . . . . . . . . . . . . . . . . . . Fabricators . | . . . . . . . . . . . . . . . . . . Repair Stations 2 | . . . . . . . . 1 . 1 . . . . . . . Patch 2 | . . . . . . . . 1 . 1 . . . . . . . Recycling Units . | . . . . . . . . . . . . . . . . . . Scanalyzers . | . . . . . . . . . . . . . . . . . . Garrison Access . | . . . . . . . . . . . . . . . . . . Data Cores Recovered . | . . . . . . . . . . . . . . . . . . Used . | . . . . . . . . . . . . . . . . . . Hacking Detections 18 | . . . 1 1 4 2 1 1 2 3 . . . 1 . 2 . Full Trace Events 2 | . . . . . . 1 . . 1 . . . . . . . . Feedback Events . | . . . . . . . . . . . . . . . . . . Feedback Blocked . | . . . . . . . . . . . . . . . . . . Robot Schematics Acquired . | . . . . . . . . . . . . . . . . . . Robots Built . | . . . . . . . . . . . . . . . . . . Authchips . | . . . . . . . . . . . . . . . . . . Time . | . . . . . . . . . . . . . . . . . . Total Robot Build Rating . | . . . . . . . . . . . . . . . . . . Part Schematics Acquired . | . . . . . . . . . . . . . . . . . . Parts Built . | . . . . . . . . . . . . . . . . . . Authchips . | . . . . . . . . . . . . . . . . . . Time . | . . . . . . . . . . . . . . . . . . Total Part Build Rating . | . . . . . . . . . . . . . . . . . . Parts Repaired . | . . . . . . . . . . . . . . . . . . Time . | . . . . . . . . . . . . . . . . . . Parts Recycled . | . . . . . . . . . . . . . . . . . . Recycled Matter . | . . . . . . . . . . . . . . . . . . Retrieved Matter . | . . . . . . . . . . . . . . . . . . Retrieved Components . | . . . . . . . . . . . . . . . . . . Parts Scanalyzed . | . . . . . . . . . . . . . . . . . . Part Schematics Acquired . | . . . . . . . . . . . . . . . . . . Parts Damaged . | . . . . . . . . . . . . . . . . . . Bothacking | -11 -10 -9 -8 -8 -8 -7 -7 -7 -7 -6 -6 -6 -6 -5 -5 -5 -5 ------------ Run | Yrd Mat Mat Mat Gar Mat Fac Gar Fac Gar Fac Was Fac DSF Fac Was Fac Gar Used RIF Installer . | . . . . . . . . . . . . . . . . . . Robots Hacked . | . . . . . . . . . . . . . . . . . . Non-combat . | . . . . . . . . . . . . . . . . . . Combat . | . . . . . . . . . . . . . . . . . . Robot Hacks Applied . | . . . . . . . . . . . . . . . . . . Relay Couplers Released 40 | . . . . 19 . . 9 . 12 . . . . . . . . Machine Destruction 40 | . . . . 19 . . 9 . 12 . . . . . . . . Fabnet Peak Effective % . | . . . . . . . . . . . . . . . . . . Robots Rewired . | . . . . . . . . . . . . . . . . . . Allies Hacked . | . . . . . . . . . . . . . . . . . . Hacks Repelled . | . . . . . . . . . . . . . . . . . . Allies | -11 -10 -9 -8 -8 -8 -7 -7 -7 -7 -6 -6 -6 -6 -5 -5 -5 -5 -------- Run | Yrd Mat Mat Mat Gar Mat Fac Gar Fac Gar Fac Was Fac DSF Fac Was Fac Gar Total Allies 20 | . . . . . . . . . 2 . 18 . . . . . . Largest Group 18 | . . . . . . . . . 2 . 18 7 7 . . . . Highest-Rated Group 656 | . . . . . . . . . 142 . 656 307 307 . . . . Highest-Rated Ally 80 | . . . . . . . . . 80 . 50 50 50 . . . . Initial Warlord ECA Mod 174 | . . . . . 10 9 9 11 11 16 16 16 16 15 15 15 15 Total Orders . | . . . . . . . . . . . . . . . . . . Ally Attacks 148 | . . . . . . . . . 30 . 93 . 25 . . . . Total Damage 6905 | . . . . . . . . . 1008 . 5149 . 748 . . . . Kills 25 | . . . . . . . . . 7 . 14 . 4 . . . . Allies Corrupted . | . . . . . . . . . . . . . . . . . . Allies Melted . | . . . . . . . . . . . . . . . . . . Intel | -11 -10 -9 -8 -8 -8 -7 -7 -7 -7 -6 -6 -6 -6 -5 -5 -5 -5 ------- Run | Yrd Mat Mat Mat Gar Mat Fac Gar Fac Gar Fac Was Fac DSF Fac Was Fac Gar Active Infowar (turns) 3010 | . . . . . . 419 497 328 3 566 312 48 208 113 104 324 88 Sensors 1465 | . . . . . . . . 328 3 566 312 48 208 . . . . Seismic 807 | . . . . . . 419 132 . . . . . . . . 168 88 Jamming 738 | . . . . . . . 365 . . . . . . 113 104 156 . Robot Analysis Total . | . . . . . . . . . . . . . . . . . . Derelict Logs Recovered . | . . . . . . . . . . . . . . . . . . Drone Launches . | . . . . . . . . . . . . . . . . . . Drone Recoveries . | . . . . . . . . . . . . . . . . . . Exploration | -11 -10 -9 -8 -8 -8 -7 -7 -7 -7 -6 -6 -6 -6 -5 -5 -5 -5 ------------- Run | Yrd Mat Mat Mat Gar Mat Fac Gar Fac Gar Fac Was Fac DSF Fac Was Fac Gar Turns Passed 9641 | 85 113 788 1149 1460 1159 458 814 380 996 569 312 48 280 200 104 422 304 Spaces Moved 7073 | 50 71 352 423 411 426 544 591 442 1070 870 412 81 210 313 173 521 113 Core 143 | 7 . . . . . . . . . . . . 12 117 . 6 1 Treads 1791 | 43 71 352 423 411 426 6 . . . . . . . . . . 59 Legs 32 | . . . . . . . . . . . . . 10 . . . 22 Wheels 536 | . . . . . . . 329 . . . . . . 1 . 181 25 Hover 4332 | . . . . . . 538 262 442 1070 870 412 81 188 195 173 95 6 Flight 239 | . . . . . . . . . . . . . . . . 239 . Fastest Speed 26 | 50 160 160 160 160 236 63 63 63 63 52 52 52 50 50 60 26 110 Average Speed 105 | 150 160 160 223 281 237 65 100 66 63 53 64 52 64 55 60 63 165 Slowest Speed 400 | 160 160 160 320 400 238 267 147 71 141 56 124 52 400 80 60 140 350 Overloaded Moves . | . . . . . . . . . . . . . . . . . . Propulsion Burnouts . | . . . . . . . . . . . . . . . . . . Robots Hopped . | . . . . . . . . . . . . . . . . . . Potential Cave-ins 2 | . . . . . . . . . 2 . . . . . . . . Cave-ins Triggered . | . . . . . . . . . . . . . . . . . . Exploration Rate (%) 37 | 5 22 33 29 51 32 11 62 13 91 17 96 3 80 7 95 17 9 Regions Visited 17 Branch Regions . Pre-discovered Areas . | . . . . . . . . . . . . . . . . . . Known Exits Taken 5 | . . . 1 . . 1 . 1 . . . 1 . . . 1 . Unknown Exits Taken 4 | 1 1 1 . . 1 . . . . . . . . . . . . Scrap Searched . | . . . . . . . . . . . . . . . . . . Spaces Dug 18 | . . . . . . 7 1 4 . 3 . . . 1 . 2 . Terrain Destroyed 607 | . . 12 25 89 28 76 163 4 202 3 . . . 1 . 2 2 Melee 12 | . . . . . . 2 1 3 . 3 . . . 1 . 2 . Projectile 26 | . . 3 . 19 1 . . 1 . . . . . . . . 2 AOE 569 | . . 9 25 70 27 74 162 . 202 . . . . . . . . Terrain Rammed . | . . . . . . . . . . . . . . . . . . Walls Destroyed . | . . . . . . . . . . . . . . . . . . Machines Disabled . | . . . . . . . . . . . . . . . . . . Actions | -11 -10 -9 -8 -8 -8 -7 -7 -7 -7 -6 -6 -6 -6 -5 -5 -5 -5 --------- Run | Yrd Mat Mat Mat Gar Mat Fac Gar Fac Gar Fac Was Fac DSF Fac Was Fac Gar Total 8470 | 57 71 469 541 587 523 611 719 496 1338 948 457 86 304 330 172 578 183 Wait 341 | . . 13 23 1 33 1 10 8 147 10 40 6 36 . . 5 8 Move 7060 | 49 70 351 423 410 425 543 590 442 1069 870 411 80 209 313 172 520 113 Hop . | . . . . . . . . . . . . . . . . . . Pick Up 147 | 2 1 19 19 38 9 7 4 11 10 16 1 . 1 . . 7 2 Fast Attach 77 | 6 . 8 6 3 3 2 3 3 3 1 2 . 2 8 . 18 9 Attach 80 | . . 1 7 16 1 14 10 1 7 8 . . 7 1 . 1 6 Detach 18 | . . . 1 4 . 1 4 . 1 1 . . 1 1 . 1 3 Swap 54 | . . 6 3 11 8 4 4 4 9 4 . . 1 . . . . Drop 131 | . . 14 14 16 13 17 4 6 7 13 3 . 6 2 . 8 8 Fire 309 | . . 57 45 66 31 8 41 5 39 . . . . . . . 17 Melee 179 | . . . . 20 . 14 33 16 3 25 . . 28 5 . 18 17 Ram 4 | . . . . . . . . . 4 . . . . . . . . Kick . | . . . . . . . . . . . . . . . . . . Crush . | . . . . . . . . . . . . . . . . . . Escape Stasis 70 | . . . . 2 . . 16 . 39 . . . 13 . . . . Rewire . | . . . . . . . . . . . . . . . . . . Trap . | . . . . . . . . . . . . . . . . . . Miscellaneous . | . . . . . . . . . . . . . . . . . . Route ------- -11/Scrapyard -10/Materials -9/Materials -8/Materials -8/Garrison (discovered 3 exits: *Mat x3) -8/Materials -7/Factory -7/Garrison (discovered 3 exits: *Fac x3) -7/Factory -7/Garrison (discovered 3 exits: *Fac x3) -6/Factory -6/Waste -6/Factory (discovered 3 exits: Low x2 / DSF) -6/DSF -5/Factory -5/Waste -5/Factory -5/Garrison History --------- Turn | Location | Event 7 | -11/Scrapyard | Discovered new exit (range 15) 86 | -11/Scrapyard | Entered Materials 174 | -10/Materials | Discovered new exit (range 3) 199 | -10/Materials | Entered another Materials area 199 | -9/Materials | Evolved 2 slots: Propulsion x1, Utility x1 309 | -9/Materials | Build established: Mutant 681 | -9/Materials | Discovered new exit (range 14) 987 | -9/Materials | Entered another Materials area 987 | -8/Materials | Evolved 2 slots: Propulsion x1, Utility x1 1295 | -8/Materials | Build established: Scavenger-Mutant 1821 | -8/Materials | Build established: Hauler-Mutant 2061 | -8/Materials | Garrison activated, responded to threat 2136 | -8/Materials | Identified exit to Garrison 2136 | -8/Materials | Entered Garrison 2260 | -8/Garrison | Discovered new exit (range 87) 2260 | -8/Garrison | Discovered new exit (range 61) 2260 | -8/Garrison | Discovered new exit (range 56) 2391 | -8/Garrison | Garrison Relay disabled 2758 | -8/Garrison | Spotted B-75 Beast 2761 | -8/Garrison | Spotted B-75 Beast 2834 | -8/Garrison | Triggered checkpoint 2854 | -8/Garrison | Triggered checkpoint 3097 | -8/Garrison | Core integrity fell below 50% 3130 | -8/Garrison | Lost 6 parts (1p3n1u1w) 3164 | -8/Garrison | Garrison Relay disabled 3181 | -8/Garrison | Garrison Relay disabled 3194 | -8/Garrison | Garrison Relay disabled 3216 | -8/Garrison | Garrison Relay disabled 3300 | -8/Garrison | Triggered checkpoint 3398 | -8/Garrison | Build established: Scavenger-Mutant 3587 | -8/Garrison | Phase Generator disabled 3596 | -8/Garrison | Entered Materials 3799 | -8/Materials | Build established: Hauler-Mutant 4416 | -8/Materials | Discovered new exit (range 15) 4755 | -8/Materials | Entered Factory 4755 | -7/Factory | Evolved 2 slots: Propulsion x1, Utility x1 5066 | -7/Factory | Build established: Scavenger-Mutant 5210 | -7/Factory | Identified exit to Garrison 5213 | -7/Factory | Entered Garrison 5221 | -7/Garrison | Triggered checkpoint 5243 | -7/Garrison | Garrison Relay disabled 5407 | -7/Garrison | Triggered checkpoint 5407 | -7/Garrison | Triggered checkpoint 5647 | -7/Garrison | Garrison Relay disabled 5676 | -7/Garrison | Discovered new exit (range 8) 5719 | -7/Garrison | Build established: Mutant 5789 | -7/Garrison | Triggered checkpoint 5952 | -7/Garrison | Discovered new exit (range 13) 5977 | -7/Garrison | Discovered new exit (range 5) 6027 | -7/Garrison | Entered Factory 6031 | -7/Factory | Lost 4 parts (1p2n1w) 6098 | -7/Factory | Build established: Scavenger-Mutant 6407 | -7/Factory | Identified exit to Garrison 6407 | -7/Factory | Entered Garrison 6478 | -7/Garrison | Phase Generator disabled 6516 | -7/Garrison | Triggered checkpoint 6533 | -7/Garrison | Core integrity fell below 50% 6556 | -7/Garrison | Found Launcher Loader 6570 | -7/Garrison | Garrison Relay disabled 6649 | -7/Garrison | Discovered new exit (range 9) 6654 | -7/Garrison | Found embedded Infiltrators 6664 | -7/Garrison | Identified exit to Factory 6729 | -7/Garrison | Triggered checkpoint 6755 | -7/Garrison | Garrison Relay disabled 6819 | -7/Garrison | Triggered checkpoint 6856 | -7/Garrison | Discovered exit to Factory (range 13) 6902 | -7/Garrison | Garrison Relay disabled 7036 | -7/Garrison | Spotted B-75 Beast 7139 | -7/Garrison | Lost 5 parts (2n2u1w) 7361 | -7/Garrison | Discovered exit to Factory (range 10) 7403 | -7/Garrison | Entered Factory 7403 | -6/Factory | Evolved 2 slots: Propulsion x1, Utility x1 7972 | -6/Factory | Manually triggered Chute Trap 7972 | -6/Factory | Sucked down chute 7972 | -6/Factory | Entered Waste 7977 | -6/Waste | Spotted C-40 Crusher 8006 | -6/Waste | Spotted C-40 Crusher 8042 | -6/Waste | Warlord forces began an assault 8070 | -6/Waste | Spotted C-40 Crusher 8076 | -6/Waste | Allies destroyed C-40 Crusher 8080 | -6/Waste | Spotted C-40 Crusher 8083 | -6/Waste | Allies destroyed C-40 Crusher 8090 | -6/Waste | Spotted C-40 Crusher 8090 | -6/Waste | Allies destroyed C-40 Crusher 8091 | -6/Waste | Allies destroyed C-40 Crusher 8098 | -6/Waste | Allies destroyed C-40 Crusher 8120 | -6/Waste | Spotted C-40 Crusher 8129 | -6/Waste | Lost 10 allies 8132 | -6/Waste | Allies destroyed C-40 Crusher 8207 | -6/Waste | Discovered new exit (range 11) 8283 | -6/Waste | Identified exit to Factory 8284 | -6/Waste | Entered Factory 8284 | -6/Factory | Accompanied by 7 allies 8303 | -6/Factory | Identified exit to Lower Caves 8316 | -6/Factory | Identified exit to DSF 8332 | -6/Factory | Entered DSF 8332 | -6/DSF | Accompanied by 7 allies 8400 | -6/DSF | Additional patrols routed to DSF 8405 | -6/DSF | Discovered new exit (range 15) 8412 | -6/DSF | Identified exit to Factory 8468 | -6/DSF | Lost 7 allies 8588 | -6/DSF | Core integrity fell below 50% 8598 | -6/DSF | Core integrity fell below 20% 8612 | -6/DSF | Entered Factory 8612 | -5/Factory | Evolved 2 slots: Power x1, Utility x1 8642 | -5/Factory | Lost 12 parts (8n3u1w) 8812 | -5/Factory | Manually triggered Chute Trap 8812 | -5/Factory | Sucked down chute 8812 | -5/Factory | Entered Waste 8827 | -5/Waste | EMP discharged 8827 | -5/Waste | System corruption reached 10% 8830 | -5/Waste | Spotted C-40 Crusher 8854 | -5/Waste | Spotted C-40 Crusher 8869 | -5/Waste | Spotted C-40 Crusher 8872 | -5/Waste | Spotted C-40 Crusher 8872 | -5/Waste | Spotted C-40 Crusher 8909 | -5/Waste | Spotted C-40 Crusher 8910 | -5/Waste | Discovered new exit (range 11) 8915 | -5/Waste | Identified exit to Factory 8916 | -5/Waste | Entered Factory 9025 | -5/Factory | Lost 5 parts (1p3n1u) 9114 | -5/Factory | Core integrity fell below 50% 9144 | -5/Factory | Lost 8 parts (2p5n1u) 9312 | -5/Factory | Identified exit to Garrison 9338 | -5/Factory | Entered Garrison 9412 | -5/Garrison | Triggered checkpoint 9438 | -5/Garrison | Core integrity fell below 20% 9458 | -5/Garrison | Lost 7 parts (2p1n3u1w) 9643 | -5/Garrison | Core destroyed Last Messages --------------- 09623_ Slug penetrates Wall. 09627_ Acquired Variable Charge Gun. 09631_ Penetrated by Slug. 09632_ Dropped Imp. Energy Well. 09633_ Extracted 12 energy. 09633_ Overload: Heat surge (+117). 09634_ Extracted 89 energy. 09634_ Slug penetrates Wall. 09637_ Extracted 89 energy. 09637_ Penetrated by Slug. 09638_ Overheating: Energy bleed (-21). 09638_ System corrupted: Energy discharge (-30). 09638_ Extracted 51 energy. 09639_ Slug penetrates Wall. 09640_ Extracted 89 energy. 09641_ Overheating: System interference. 09641_ Adv. Targeting Computer temporarily disabled. 09642_ Overload: Heat surge (+136). 09642_ Y-64 Sentinel destroyed. 09643_ Overheating: Core damaged (-120). Map ----- +----------------------------------------------------+ | ?????????????????# #??????????????????????????? | | ?????????????????# ###??????????????????????????? | | ?????????????????# #????????????????????????????? | | ?????????????????# #????????????????????????????? | | ?????????????????# #????????????????????????????? | | ?????????????????# #????????????????????????????? | | ?????????????????# #????????????????????????????? | | ?????????????????# #????????????????????????????? | | ?????????????????# #????????????????????????????? | | ???????########### #######??????????????????????? | | ??????# ^ *%"! %!#??????????????????????? | | ??????# ^ ####[#??????????????????????? | | ??????# ########### #??#!#??????????????????????? | | ???????????????????#%#?#####?????????????????????? | | ???????????????????#!#?# #?????????????????????? | | ???????????????????#!### ##########????????????? | | ???????????????????#!! #????????????? | | ???????????????????#+####=####### #????????????? | | ??????????????????? #??#!#????#"""""#???????????? | | ???????????????????# #??#[#????#######???????????? | | ???????????????????# #??#%#??????????????????????? | | ???????????????????# #??#!#??????????????????????? | | ???????????????????# ###!=#??????????????????????? | | ???????????????????? ? # ######?????????????????? | | ????????????????????#??#; # [[#?????????????????? | | ????????????????????????#@ [[ #?????????????????? | | ????????????????????????###!!!!#?????????????????? | | ??????????????????????????######?????????????????? | | ?????????????????????????????????????????????????? | | ?????????????????????????????????????????????????? | | ?????????????????????????????????????????????????? | | ?????????????????????????????????????????????????? | | ?????????????????????????????????????????????????? | | ?????????????????????????????????????????????????? | | ?????????????????????????????????????????????????? | | ?????????????????????????????????????????????????? | | ?????????????????????????????????????????????????? | | ?????????????????????????????????????????????????? | | ?????????????????????????????????????????????????? | | ?????????????????????????????????????????????????? | | ?????????????????????????????????????????????????? | | ?????????????????????????????????????????????????? | | ?????????????????????????????????????????????????? | | ?????????????????????????????????????????????????? | | ?????????????????????????????????????????????????? | | ?????????????????????????????????????????????????? | | ?????????????????????????????????????????????????? | | ?????????????????????????????????????????????????? | | ?????????????????????????????????????????????????? | | ?????????????????????????????????????????????????? | +----------------------------------------------------+ Best States ------------- Heat Dissipation 78 Coolant Potential 50 Energy Generation 23 Energy Capacity 900 Matter Stores 300 Matter Capacity 300 Sight Range 16 Robot Scan Range 16 Terrain Scan Density 10 Jamming Range 14 Armor Coverage 600 Power Shielding 66 Utility Shielding 66 Weapon Cycling 15 Evasion (%) 64 Targeting Accuracy 16 Melee Accuracy 8 Launcher Accuracy 20 Core Analysis 6 Recoil Reduction 4 Kinecelleration 30 Offensive Hacking 20 Item Schematics ----------------- None Robot Schematics ------------------ None Fabricated ------------ Nothing Repaired ---------- Nothing Alien Tech Used ----------------- None Achievements -------------- None Challenges ------------ None Game ------ Seed FocalZioniteUnit Manual? 0 Play Time 01:31:00 Cumulative 365.8 hours Start 2025.07.30 @ 14:53:09 End 2025.08.06 @ 16:48:12 Sessions 7 Manual Loads 0 Difficulty Rogue Special Mode None Game No. 344 Rogue 308 Adventurer 36 Explorer 0 Win Type - Total 14 Types 6/0/8/0/0/0/0/0/0/0 Lore% 71 Gallery% 85 Achievement% 75 Wizard Run 0 Options --------- Layout 0 ASCII 0 Keyboard 0 Movement Mouse Keybinds 0 Fullscreen 1 Font 18/SmallcapsGlow Map View 76x50 Zoom Use 0% Tactical HUD 1 Map Filters NONE Filters SHIFT_HUE(315) Steam 1 RUN: 7db46c23-fca6-4052-b104-556a75f55d62